[Event "*** SCC Grand Prix: Titled Tuesday Blitz"]
[Site "Chess.com"]
[Date "2020.10.13"]
[Round "6"]
[White "Fandorine"]
[Black "tornikesanikidze"]
[Result "0-1"]
[WhiteElo "2847"]
[BlackElo "2698"]
[TimeControl "180+1"]
[EndTime "11:09:14 PDT"]
[Termination "tornikesanikidze won by resignation"]

1. Nf3 {[%clk 0:03:00.9]} 1... Nf6 {[%clk 0:02:59.8]} 2. g3 {[%clk 0:03:00.9]}
2... g6 {[%clk 0:03:00.2]} 3. Bg2 {[%clk 0:03:01.7]} 3... Bg7 {[%clk 0:03:00.8]}
4. O-O {[%clk 0:03:02.6]} 4... O-O {[%clk 0:03:01.2]} 5. d3 {[%clk 0:03:03.5]}
5... d5 {[%clk 0:03:01.1]} 6. Nbd2 {[%clk 0:03:04.1]} 6... Nc6 {[%clk
0:03:01.5]} 7. e4 {[%clk 0:03:03.9]} 7... e5 {[%clk 0:03:01.6]} 8. exd5 {[%clk
0:03:03.9]} 8... Nxd5 {[%clk 0:03:01.3]} 9. Re1 {[%clk 0:03:04.8]} 9... Re8
{[%clk 0:03:01.3]} 10. a4 {[%clk 0:03:04.8]} 10... Ndb4 {[%clk 0:02:57.9]} 11.
Nc4 {[%clk 0:03:02]} 11... e4 {[%clk 0:02:53.1]} 12. dxe4 {[%clk 0:02:32.8]}
12... Qxd1 {[%clk 0:02:51.8]} 13. Rxd1 {[%clk 0:02:33.7]} 13... Nxc2 {[%clk
0:02:52.2]} 14. Rb1 {[%clk 0:02:34.2]} 14... Be6 {[%clk 0:02:52.4]} 15. b3
{[%clk 0:02:29.4]} 15... Rad8 {[%clk 0:02:46.6]} 16. Bf4 {[%clk 0:02:27.2]}
16... Rc8 {[%clk 0:02:30.8]} 17. Ng5 {[%clk 0:02:00.6]} 17... Bxc4 {[%clk
0:02:04.7]} 18. bxc4 {[%clk 0:02:01.5]} 18... h6 {[%clk 0:02:05]} 19. Nf3 {[%clk
0:01:37.3]} 19... g5 {[%clk 0:02:04]} 20. Bd2 {[%clk 0:01:37.7]} 20... b6 {[%clk
0:01:52.6]} 21. Rdc1 {[%clk 0:01:11]} 21... N2d4 {[%clk 0:01:50.5]} 22. Nxd4
{[%clk 0:01:11.2]} 22... Nxd4 {[%clk 0:01:50.1]} 23. Kf1 {[%clk 0:01:11.8]}
23... Rcd8 {[%clk 0:01:32.8]} 24. Be1 {[%clk 0:01:11]} 24... c5 {[%clk
0:01:26.1]} 25. a5 {[%clk 0:01:07.6]} 25... Rb8 {[%clk 0:01:23.1]} 26. axb6
{[%clk 0:01:03.1]} 26... axb6 {[%clk 0:01:22.8]} 27. Rd1 {[%clk 0:01:01.8]}
27... Red8 {[%clk 0:01:09.5]} 28. Bh3 {[%clk 0:00:47.1]} 28... h5 {[%clk
0:01:02]} 29. f4 {[%clk 0:00:27.9]} 29... Nc2 {[%clk 0:00:40.8]} 30. Bf2 {[%clk
0:00:15.3]} 30... Bd4 {[%clk 0:00:39.4]} 31. fxg5 {[%clk 0:00:11.2]} 31... Ra8
{[%clk 0:00:32.4]} 32. Rxb6 {[%clk 0:00:07.5]} 32... Bxf2 {[%clk 0:00:29.9]} 33.
Rxd8+ {[%clk 0:00:07.1]} 33... Rxd8 {[%clk 0:00:30.8]} 34. Kxf2 {[%clk
0:00:07.5]} 34... Rd2+ {[%clk 0:00:30.5]} 35. Kg1 {[%clk 0:00:06.4]} 35... Rd1+
{[%clk 0:00:27.7]} 36. Kf2 {[%clk 0:00:06.7]} 36... Rd2+ {[%clk 0:00:27.9]} 37.
Kf3 {[%clk 0:00:06.9]} 37... Rxh2 {[%clk 0:00:24.3]} 38. Bf5 {[%clk 0:00:07.2]}
38... Ne1+ {[%clk 0:00:22]} 39. Kf4 {[%clk 0:00:07.4]} 39... Nd3+ {[%clk
0:00:14.9]} 40. Ke3 {[%clk 0:00:07.5]} 40... Ne5 {[%clk 0:00:14.9]} 41. Rb5
{[%clk 0:00:03.4]} 41... Nxc4+ {[%clk 0:00:13.6]} 42. Kf3 {[%clk 0:00:02.9]}
42... Rc2 {[%clk 0:00:05.7]} 43. Rb8+ {[%clk 0:00:03]} 43... Kg7 {[%clk
0:00:05.6]} 44. g6 {[%clk 0:00:02.5]} 44... Ne5+ {[%clk 0:00:05.2]} 45. Ke3
{[%clk 0:00:02]} 45... Nxg6 {[%clk 0:00:05]} 46. Rb7 {[%clk 0:00:02]} 46... Rc3+
{[%clk 0:00:04.9]} 47. Kf2 {[%clk 0:00:01.3]} 47... Ne5 {[%clk 0:00:05]} 48. Kg2
{[%clk 0:00:01.7]} 48... c4 {[%clk 0:00:05.2]} 49. Rc7 {[%clk 0:00:01.7]} 49...
Rc2+ {[%clk 0:00:04.3]} 50. Kh3 {[%clk 0:00:02.2]} 50... Kf6 {[%clk 0:00:04.1]}
51. Rb7 {[%clk 0:00:02.8]} 51... c3 {[%clk 0:00:03.8]} 52. Rb6+ {[%clk
0:00:02.9]} 52... Kg5 {[%clk 0:00:03.6]} 53. Rb8 {[%clk 0:00:02.8]} 53... Nf3
{[%clk 0:00:03.7]} 54. Rg8+ {[%clk 0:00:03.1]} 54... Kf6 {[%clk 0:00:04]} 55. g4
{[%clk 0:00:03.6]} 55... h4 {[%clk 0:00:04.3]} 56. g5+ {[%clk 0:00:03.7]} 56...
Nxg5+ {[%clk 0:00:04.5]} 57. Kxh4 {[%clk 0:00:03.6]} 57... Ne6 {[%clk
0:00:05.4]} 58. Rc8 {[%clk 0:00:02.4]} 58... Rh2+ {[%clk 0:00:05.2]} 59. Kg3
{[%clk 0:00:02.7]} 59... Rc2 {[%clk 0:00:05.2]} 60. Kg4 {[%clk 0:00:02.5]} 60...
Ke5 {[%clk 0:00:05.4]} 61. Rd8 {[%clk 0:00:02.1]} 61... Rc1 {[%clk 0:00:05.5]}
62. Rd5+ {[%clk 0:00:03]} 62... Kf6 {[%clk 0:00:05.7]} 63. e5+ {[%clk
0:00:03.5]} 63... Ke7 {[%clk 0:00:05.4]} 64. Ra5 {[%clk 0:00:03.8]} 64... Nd4
{[%clk 0:00:05.3]} 65. Ra7+ {[%clk 0:00:04]} 65... Kf8 {[%clk 0:00:05.2]} 66.
Be4 {[%clk 0:00:04.4]} 66... c2 {[%clk 0:00:05]} 67. Bxc2 {[%clk 0:00:04.7]}
67... Rxc2 {[%clk 0:00:04.9]} 68. Kf4 {[%clk 0:00:05.3]} 68... Ne6+ {[%clk
0:00:04.8]} 69. Kf5 {[%clk 0:00:05.9]} 69... Rf2+ {[%clk 0:00:04.9]} 70. Ke4
{[%clk 0:00:06.4]} 70... Kg7 {[%clk 0:00:05]} 71. Ra1 {[%clk 0:00:06.1]} 71...
Rf4+ {[%clk 0:00:05.1]} 72. Kd5 {[%clk 0:00:06.3]} 72... Kg6 {[%clk 0:00:06]}
73. Rg1+ {[%clk 0:00:06.6]} 73... Kf5 {[%clk 0:00:06.2]} 74. Rh1 {[%clk
0:00:05.7]} 74... Rd4+ {[%clk 0:00:06]} 75. Kc6 {[%clk 0:00:06.6]} 75... Kxe5
{[%clk 0:00:06.5]} 76. Re1+ {[%clk 0:00:07.2]} 76... Re4 {[%clk 0:00:06.2]} 77.
Rf1 {[%clk 0:00:07.9]} 77... f5 {[%clk 0:00:06.6]} 78. Kd7 {[%clk 0:00:08]}
78... f4 {[%clk 0:00:06.8]} 79. Ra1 {[%clk 0:00:07.9]} 79... Nc5+ {[%clk
0:00:05.1]} 80. Kc6 {[%clk 0:00:07.9]} 80... Nd3 {[%clk 0:00:04.6]} 81. Ra5+
{[%clk 0:00:07.3]} 81... Kd4 {[%clk 0:00:04.7]} 82. Ra4+ {[%clk 0:00:07.8]}
82... Ke3 {[%clk 0:00:05.6]} 83. Ra3 {[%clk 0:00:08.3]} 83... f3 {[%clk
0:00:05.8]} 84. Ra4 {[%clk 0:00:08.8]} 0-1

[Event "*** SCC Grand Prix: Titled Tuesday Blitz"]
[Site "Chess.com"]
[Date "2020.10.13"]
[Round "6"]
[White "Gerodot71"]
[Black "LubovMarkelova"]
[Result "1/2-1/2"]
[WhiteElo "2457"]
[BlackElo "2251"]
[TimeControl "180+1"]
[EndTime "11:09:25 PDT"]
[Termination "Game drawn - insufficient material"]

1. d4 {[%clk 0:03:00.9]} 1... d5 {[%clk 0:02:59.7]} 2. c4 {[%clk 0:03:01.3]}
2... c6 {[%clk 0:03:00.3]} 3. Nf3 {[%clk 0:03:00.8]} 3... Nf6 {[%clk 0:03:00.8]}
4. Nc3 {[%clk 0:03:01.1]} 4... e6 {[%clk 0:03:00.5]} 5. e3 {[%clk 0:03:00.7]}
5... Nbd7 {[%clk 0:03:00.9]} 6. Be2 {[%clk 0:02:58.2]} 6... Bd6 {[%clk
0:03:01.1]} 7. O-O {[%clk 0:02:58.5]} 7... O-O {[%clk 0:03:00.4]} 8. b3 {[%clk
0:02:59.1]} 8... b6 {[%clk 0:03:00.2]} 9. Bb2 {[%clk 0:02:58.2]} 9... Bb7 {[%clk
0:03:00.4]} 10. Qc2 {[%clk 0:02:56.4]} 10... c5 {[%clk 0:02:59.5]} 11. cxd5
{[%clk 0:02:55.4]} 11... Nxd5 {[%clk 0:02:57.4]} 12. Nxd5 {[%clk 0:02:54.8]}
12... Bxd5 {[%clk 0:02:53.3]} 13. Rad1 {[%clk 0:02:54.9]} 13... cxd4 {[%clk
0:02:42.2]} 14. Nxd4 {[%clk 0:02:53.3]} 14... Rc8 {[%clk 0:02:41.9]} 15. Qb1
{[%clk 0:02:52.8]} 15... Qe7 {[%clk 0:02:37.4]} 16. Nf5 {[%clk 0:02:50.8]} 16...
exf5 {[%clk 0:02:34.3]} 17. Rxd5 {[%clk 0:02:50.9]} 17... f4 {[%clk 0:02:21.6]}
18. Rfd1 {[%clk 0:02:35.8]} 18... fxe3 {[%clk 0:02:09.1]} 19. Rxd6 {[%clk
0:02:35]} 19... exf2+ {[%clk 0:02:09.2]} 20. Kf1 {[%clk 0:02:35.2]} 20... Nc5
{[%clk 0:01:58.1]} 21. Bf3 {[%clk 0:02:05.5]} 21... Rfe8 {[%clk 0:01:56.8]} 22.
Kxf2 {[%clk 0:02:05.1]} 22... Qe3+ {[%clk 0:01:51.3]} 23. Kf1 {[%clk 0:02:04.7]}
23... h6 {[%clk 0:01:17.6]} 24. Bd4 {[%clk 0:01:21.5]} 24... Qf4 {[%clk
0:01:11.8]} 25. Bxc5 {[%clk 0:01:20.8]} 25... bxc5 {[%clk 0:01:01]} 26. Kg1
{[%clk 0:01:10.5]} 26... Qe3+ {[%clk 0:00:51.1]} 27. Kh1 {[%clk 0:01:09.4]}
27... c4 {[%clk 0:00:49]} 28. bxc4 {[%clk 0:01:08]} 28... Rxc4 {[%clk
0:00:49.1]} 29. Rd8 {[%clk 0:01:06.4]} 29... Rc8 {[%clk 0:00:49.3]} 30. Rxc8
{[%clk 0:01:05.6]} 30... Rxc8 {[%clk 0:00:49.1]} 31. h3 {[%clk 0:01:05.8]} 31...
g5 {[%clk 0:00:44.6]} 32. Qf5 {[%clk 0:01:02.4]} 32... Rc1 {[%clk 0:00:39.1]}
33. Rxc1 {[%clk 0:00:50.9]} 33... Qxc1+ {[%clk 0:00:39.1]} 34. Kh2 {[%clk
0:00:51.5]} 34... Qc7+ {[%clk 0:00:39.6]} 35. g3 {[%clk 0:00:51.3]} 35... Qc4
{[%clk 0:00:31.5]} 36. Qd5 {[%clk 0:00:46.7]} 36... Qc2+ {[%clk 0:00:29.7]} 37.
Bg2 {[%clk 0:00:46.4]} 37... Qf2 {[%clk 0:00:23.8]} 38. Qd8+ {[%clk 0:00:40]}
38... Kg7 {[%clk 0:00:23.9]} 39. Qa5 {[%clk 0:00:37.7]} 39... Kg6 {[%clk
0:00:20.1]} 40. Qa6+ {[%clk 0:00:35.6]} 40... f6 {[%clk 0:00:20.2]} 41. Qd3+
{[%clk 0:00:34.6]} 41... Kg7 {[%clk 0:00:20]} 42. a3 {[%clk 0:00:34.1]} 42... h5
{[%clk 0:00:19.6]} 43. Kh1 {[%clk 0:00:28.6]} 43... Qe1+ {[%clk 0:00:17.4]} 44.
Qf1 {[%clk 0:00:24.7]} 44... Qxg3 {[%clk 0:00:17.5]} 45. a4 {[%clk 0:00:19.6]}
45... g4 {[%clk 0:00:16]} 46. Qg1 {[%clk 0:00:16.6]} 46... Qf4 {[%clk
0:00:12.5]} 47. hxg4 {[%clk 0:00:16]} 47... hxg4 {[%clk 0:00:12.9]} 48. Qxa7+
{[%clk 0:00:15.6]} 48... Kg6 {[%clk 0:00:12.2]} 49. Qa5 {[%clk 0:00:09.6]} 49...
Qh6+ {[%clk 0:00:11.3]} 50. Kg1 {[%clk 0:00:09.4]} 50... Qc1+ {[%clk 0:00:11.3]}
51. Kf2 {[%clk 0:00:09.1]} 51... Qc2+ {[%clk 0:00:10.6]} 52. Kf1 {[%clk
0:00:09.5]} 52... Qc1+ {[%clk 0:00:10.5]} 53. Kf2 {[%clk 0:00:09.9]} 53... Qc2+
{[%clk 0:00:09.9]} 54. Kg3 {[%clk 0:00:10.4]} 54... f5 {[%clk 0:00:07.4]} 55.
Qa7 {[%clk 0:00:09.4]} 55... Kg5 {[%clk 0:00:07.8]} 56. Qe3+ {[%clk 0:00:09.6]}
56... Kg6 {[%clk 0:00:07.3]} 57. a5 {[%clk 0:00:09.7]} 57... Qc7+ {[%clk
0:00:06.2]} 58. Kh4 {[%clk 0:00:10.1]} 58... Qh7+ {[%clk 0:00:05.5]} 59. Kg3
{[%clk 0:00:08.9]} 59... Qc7+ {[%clk 0:00:06]} 60. Qf4 {[%clk 0:00:08.9]} 60...
Qxa5 {[%clk 0:00:05.2]} 61. Qd6+ {[%clk 0:00:09.5]} 61... Kg5 {[%clk 0:00:04.3]}
62. Qe7+ {[%clk 0:00:09.9]} 62... Kg6 {[%clk 0:00:04.6]} 63. Kh4 {[%clk
0:00:09.7]} 63... Qb5 {[%clk 0:00:03.3]} 64. Qg5+ {[%clk 0:00:09.5]} 64... Kf7
{[%clk 0:00:03.8]} 65. Qh5+ {[%clk 0:00:08.2]} 65... Kg7 {[%clk 0:00:03.7]} 66.
Kg5 {[%clk 0:00:06.9]} 66... Qe5 {[%clk 0:00:03.6]} 67. Qh6+ {[%clk 0:00:06.8]}
67... Kf7 {[%clk 0:00:03.8]} 68. Qh7+ {[%clk 0:00:07.2]} 68... Ke6 {[%clk
0:00:03.7]} 69. Qg8+ {[%clk 0:00:07.4]} 69... Ke7 {[%clk 0:00:03.6]} 70. Qh7+
{[%clk 0:00:06.4]} 70... Ke6 {[%clk 0:00:03.6]} 71. Qg6+ {[%clk 0:00:06.2]}
71... Ke7 {[%clk 0:00:03]} 72. Bc6 {[%clk 0:00:05.1]} 72... Qe3+ {[%clk
0:00:02.7]} 73. Kxf5 {[%clk 0:00:05.4]} 73... Qd3+ {[%clk 0:00:03.1]} 74. Be4
{[%clk 0:00:05.8]} 74... Qb5+ {[%clk 0:00:03.2]} 75. Kf4 {[%clk 0:00:05]} 75...
Qb8+ {[%clk 0:00:03.4]} 76. Kxg4 {[%clk 0:00:04.2]} 76... Qc8+ {[%clk
0:00:03.8]} 77. Bf5 {[%clk 0:00:04.7]} 77... Qc4+ {[%clk 0:00:03.6]} 78. Kh5
{[%clk 0:00:05.1]} 78... Qe2+ {[%clk 0:00:02.8]} 79. Bg4 {[%clk 0:00:05.4]}
79... Qe5+ {[%clk 0:00:02.7]} 80. Bf5 {[%clk 0:00:04.1]} 80... Qh2+ {[%clk
0:00:02.5]} 81. Kg5 {[%clk 0:00:03.5]} 81... Qg3+ {[%clk 0:00:02.6]} 82. Bg4
{[%clk 0:00:04.4]} 82... Qe5+ {[%clk 0:00:02.8]} 83. Kh4 {[%clk 0:00:02.5]}
83... Qh2+ {[%clk 0:00:02.7]} 84. Bh3 {[%clk 0:00:01.9]} 84... Qf4+ {[%clk
0:00:02.9]} 85. Qg4 {[%clk 0:00:02.4]} 85... Qxg4+ {[%clk 0:00:03.1]} 86. Bxg4
{[%clk 0:00:03.3]} 1/2-1/2

[Event "*** SCC Grand Prix: Titled Tuesday Blitz"]
[Site "Chess.com"]
[Date "2020.10.13"]
[Round "7"]
[White "seorobert1971"]
[Black "Shield12"]
[Result "1/2-1/2"]
[WhiteElo "2724"]
[BlackElo "2827"]
[TimeControl "180+1"]
[EndTime "11:10:48 PDT"]
[Termination "Game drawn by repetition"]

1. Nf3 {[%clk 0:03:00.9]} 1... c5 {[%clk 0:03:00.2]} 2. c4 {[%clk 0:03:00.9]}
2... Nf6 {[%clk 0:03:00.2]} 3. Nc3 {[%clk 0:03:01.8]} 3... Nc6 {[%clk
0:03:00.3]} 4. e3 {[%clk 0:03:01.9]} 4... g6 {[%clk 0:02:58.8]} 5. d4 {[%clk
0:03:02]} 5... cxd4 {[%clk 0:02:59.7]} 6. exd4 {[%clk 0:03:02.9]} 6... d5 {[%clk
0:02:59.8]} 7. cxd5 {[%clk 0:03:03.8]} 7... Nxd5 {[%clk 0:03:00.7]} 8. Qb3
{[%clk 0:03:02.7]} 8... Nxc3 {[%clk 0:03:00.7]} 9. Bc4 {[%clk 0:02:58.6]} 9...
e6 {[%clk 0:02:57.7]} 10. bxc3 {[%clk 0:02:57.7]} 10... Bg7 {[%clk 0:02:57.7]}
11. Ba3 {[%clk 0:02:56.3]} 11... Bf8 {[%clk 0:02:57.6]} 12. Bc1 {[%clk
0:02:52.4]} 12... Bg7 {[%clk 0:02:56.7]} 13. Ba3 {[%clk 0:02:52.1]} 13... Bf8
{[%clk 0:02:41.5]} 14. Bc1 {[%clk 0:02:50.5]} 1/2-1/2

[Event "*** SCC Grand Prix: Titled Tuesday Blitz"]
[Site "Chess.com"]
[Date "2020.10.13"]
[Round "7"]
[White "PetrolulSah"]
[Black "TC2304"]
[Result "1-0"]
[WhiteElo "2157"]
[BlackElo "2222"]
[TimeControl "180+1"]
[EndTime "11:12:31 PDT"]
[Termination "PetrolulSah won by resignation"]

1. d4 {[%clk 0:03:00.9]} 1... Nf6 {[%clk 0:02:58.7]} 2. c4 {[%clk 0:03:00.5]}
2... c5 {[%clk 0:02:59.2]} 3. Nf3 {[%clk 0:02:59.9]} 3... cxd4 {[%clk 0:02:59]}
4. Nxd4 {[%clk 0:03:00.4]} 4... e5 {[%clk 0:02:59.7]} 5. Nb5 {[%clk 0:02:56.5]}
5... d5 {[%clk 0:03:00]} 6. cxd5 {[%clk 0:02:55.9]} 6... Bc5 {[%clk 0:03:00.2]}
7. e3 {[%clk 0:02:52.5]} 7... O-O {[%clk 0:03:00.6]} 8. N5c3 {[%clk 0:02:50.8]}
8... e4 {[%clk 0:03:00]} 9. Bc4 {[%clk 0:02:48.2]} 9... Nbd7 {[%clk 0:02:55.8]}
10. O-O {[%clk 0:02:46.4]} 10... Ne5 {[%clk 0:02:50.6]} 11. Bb3 {[%clk
0:02:46.1]} 11... Re8 {[%clk 0:02:45.7]} 12. Nd2 {[%clk 0:02:42.9]} 12... Nd3
{[%clk 0:02:40.5]} 13. Ndxe4 {[%clk 0:02:37.7]} 13... Nxc1 {[%clk 0:02:22.2]}
14. Nxf6+ {[%clk 0:02:35.9]} 14... Qxf6 {[%clk 0:02:23.1]} 15. Rxc1 {[%clk
0:02:35.1]} 15... Qh4 {[%clk 0:02:19.7]} 16. Qf3 {[%clk 0:02:26.4]} 16... Bd6
{[%clk 0:02:17.4]} 17. g3 {[%clk 0:02:20.7]} 17... Qg5 {[%clk 0:02:15.8]} 18.
Ne4 {[%clk 0:02:16.5]} 18... Rxe4 {[%clk 0:02:16.2]} 19. Qxe4 {[%clk 0:02:13.7]}
19... Bh3 {[%clk 0:02:11.2]} 20. Rfd1 {[%clk 0:02:08.2]} 20... Kf8 {[%clk
0:02:07.4]} 21. Qxh7 {[%clk 0:02:04.1]} 21... Qf5 {[%clk 0:02:03.6]} 1-0

[Event "*** SCC Grand Prix: Titled Tuesday Blitz"]
[Site "Chess.com"]
[Date "2020.10.13"]
[Round "7"]
[White "zmeeed67"]
[Black "GAusal"]
[Result "1-0"]
[WhiteElo "2358"]
[BlackElo "2040"]
[TimeControl "180+1"]
[EndTime "11:12:38 PDT"]
[Termination "zmeeed67 won by resignation"]

1. e4 {[%clk 0:03:00.9]} 1... e5 {[%clk 0:02:56.1]} 2. Nf3 {[%clk 0:03:00.1]}
2... Nc6 {[%clk 0:02:55.4]} 3. c3 {[%clk 0:02:59.9]} 3... Nf6 {[%clk 0:02:53.3]}
4. d4 {[%clk 0:02:59.5]} 4... Nxe4 {[%clk 0:02:49.6]} 5. d5 {[%clk 0:02:59.2]}
5... Ne7 {[%clk 0:02:44.8]} 6. Nxe5 {[%clk 0:02:57.8]} 6... d6 {[%clk
0:02:43.6]} 7. Bb5+ {[%clk 0:02:57.6]} 7... c6 {[%clk 0:02:41.3]} 8. dxc6 {[%clk
0:02:57.7]} 8... bxc6 {[%clk 0:02:41.4]} 9. Nxc6 {[%clk 0:02:57.2]} 9... Qb6
{[%clk 0:02:37]} 10. Nd4+ {[%clk 0:02:35.1]} 10... Bd7 {[%clk 0:02:30.5]} 11.
Bxd7+ {[%clk 0:02:30]} 11... Kxd7 {[%clk 0:02:29.8]} 12. O-O {[%clk 0:02:30.4]}
12... Ng6 {[%clk 0:02:20.8]} 13. Qg4+ {[%clk 0:02:26.1]} 13... Kc7 {[%clk
0:02:09.7]} 14. Qxe4 {[%clk 0:02:25.2]} 14... Be7 {[%clk 0:02:04]} 15. Na3
{[%clk 0:02:22.1]} 15... Rhe8 {[%clk 0:02:00.9]} 16. Nab5+ {[%clk 0:02:11]}
16... Kd8 {[%clk 0:01:56.4]} 17. Be3 {[%clk 0:02:06]} 17... Rb8 {[%clk
0:01:48.1]} 18. Nc6+ {[%clk 0:02:04.3]} 1-0

[Event "*** SCC Grand Prix: Titled Tuesday Blitz"]
[Site "Chess.com"]
[Date "2020.10.13"]
[Round "7"]
[White "niki_2003"]
[Black "Falcon28dz"]
[Result "0-1"]
[WhiteElo "1796"]
[BlackElo "2284"]
[TimeControl "180+1"]
[EndTime "11:12:42 PDT"]
[Termination "Falcon28dz won by resignation"]

1. d4 {[%clk 0:02:55.3]} 1... Nf6 {[%clk 0:02:59]} 2. c4 {[%clk 0:02:55.9]} 2...
e6 {[%clk 0:02:59.3]} 3. Nc3 {[%clk 0:02:56.5]} 3... Bb4 {[%clk 0:02:59.2]} 4.
Nf3 {[%clk 0:02:54.9]} 4... O-O {[%clk 0:02:59.1]} 5. Qc2 {[%clk 0:02:54.6]}
5... b6 {[%clk 0:02:56.9]} 6. g3 {[%clk 0:02:54.9]} 6... Bb7 {[%clk 0:02:56.2]}
7. Bg2 {[%clk 0:02:55.6]} 7... c5 {[%clk 0:02:46.1]} 8. O-O {[%clk 0:02:53.1]}
8... cxd4 {[%clk 0:02:43.7]} 9. Nxd4 {[%clk 0:02:52.5]} 9... Bxg2 {[%clk
0:02:44.6]} 10. Kxg2 {[%clk 0:02:51.3]} 10... Nc6 {[%clk 0:02:44.7]} 11. Nxc6
{[%clk 0:02:50.1]} 11... dxc6 {[%clk 0:02:45.6]} 12. Bg5 {[%clk 0:02:49.7]}
12... Be7 {[%clk 0:02:40.1]} 13. Rfd1 {[%clk 0:02:45.2]} 13... Qc7 {[%clk
0:02:38]} 14. Bxf6 {[%clk 0:02:44.2]} 14... Bxf6 {[%clk 0:02:38.9]} 15. Ne4
{[%clk 0:02:44.2]} 15... Be7 {[%clk 0:02:37.7]} 16. a3 {[%clk 0:02:41.8]} 16...
c5 {[%clk 0:02:36.3]} 17. Nc3 {[%clk 0:02:37.4]} 17... Rad8 {[%clk 0:02:35.2]}
18. Nb5 {[%clk 0:02:37.3]} 18... Qb8 {[%clk 0:02:35.4]} 19. Qe4 {[%clk
0:02:31.1]} 19... Bf6 {[%clk 0:02:30.6]} 20. Rab1 {[%clk 0:02:19.1]} 20... Rxd1
{[%clk 0:02:28.9]} 21. Rxd1 {[%clk 0:02:18.7]} 21... Bxb2 {[%clk 0:02:27.4]} 22.
Nd6 {[%clk 0:02:17.7]} 22... Rd8 {[%clk 0:02:25.6]} 23. Qc6 {[%clk 0:02:14.9]}
23... Be5 {[%clk 0:02:24]} 24. Nc8 {[%clk 0:02:02.2]} 24... Qxc8 {[%clk
0:02:18.8]} 25. Qxc8 {[%clk 0:01:59.5]} 25... Rxc8 {[%clk 0:02:19.7]} 26. Rd7
{[%clk 0:01:59.2]} 26... Bb8 {[%clk 0:02:18.2]} 27. Rb7 {[%clk 0:01:58.6]} 27...
g6 {[%clk 0:02:16.9]} 0-1

[Event "*** SCC Grand Prix: Titled Tuesday Blitz"]
[Site "Chess.com"]
[Date "2020.10.13"]
[Round "7"]
[White "sopo-tereladze"]
[Black "Quiet_Desperation"]
[Result "1-0"]
[WhiteElo "2288"]
[BlackElo "1914"]
[TimeControl "180+1"]
[EndTime "11:12:57 PDT"]
[Termination "sopo-tereladze won by resignation"]

1. d4 {[%clk 0:03:00.9]} 1... Nf6 {[%clk 0:03:00.1]} 2. Nf3 {[%clk 0:03:00.4]}
2... g6 {[%clk 0:03:00.3]} 3. Bf4 {[%clk 0:02:59.7]} 3... Bg7 {[%clk 0:03:00.6]}
4. e3 {[%clk 0:03:00.1]} 4... d6 {[%clk 0:03:00.8]} 5. h3 {[%clk 0:03:00.4]}
5... O-O {[%clk 0:03:01]} 6. Be2 {[%clk 0:03:00.8]} 6... Nc6 {[%clk 0:03:00.6]}
7. O-O {[%clk 0:03:01]} 7... Re8 {[%clk 0:03:01.1]} 8. Bh2 {[%clk 0:02:55.6]}
8... a6 {[%clk 0:02:54.6]} 9. c3 {[%clk 0:02:53.7]} 9... Bd7 {[%clk 0:02:50.3]}
10. Na3 {[%clk 0:02:49.2]} 10... e5 {[%clk 0:02:49.9]} 11. dxe5 {[%clk 0:02:44]}
11... dxe5 {[%clk 0:02:49.6]} 12. Nc4 {[%clk 0:02:42.7]} 12... e4 {[%clk
0:02:49]} 13. Nfe5 {[%clk 0:02:41.6]} 13... Nxe5 {[%clk 0:02:45.9]} 14. Nxe5
{[%clk 0:02:37.6]} 14... Be6 {[%clk 0:02:44.6]} 15. Bc4 {[%clk 0:02:30.9]} 15...
Qe7 {[%clk 0:02:40.8]} 16. Bxe6 {[%clk 0:02:28.6]} 16... Qxe6 {[%clk 0:02:39.7]}
17. Qb3 {[%clk 0:02:22.4]} 17... Nd5 {[%clk 0:02:21.5]} 18. Rad1 {[%clk
0:01:58.9]} 18... Nxe3 {[%clk 0:02:06]} 19. fxe3 {[%clk 0:01:55.6]} 19... Bxe5
{[%clk 0:02:05.6]} 20. Bxe5 {[%clk 0:01:45.1]} 20... Qxe5 {[%clk 0:02:05]} 21.
Qxf7+ {[%clk 0:01:41.4]} 21... Kh8 {[%clk 0:02:04.3]} 22. Rd7 {[%clk 0:01:40.6]}
1-0

[Event "*** SCC Grand Prix: Titled Tuesday Blitz"]
[Site "Chess.com"]
[Date "2020.10.13"]
[Round "7"]
[White "MF1966Idrisov"]
[Black "kinga2008"]
[Result "1-0"]
[WhiteElo "2341"]
[BlackElo "2184"]
[TimeControl "180+1"]
[EndTime "11:13:14 PDT"]
[Termination "MF1966Idrisov won by resignation"]

1. Nf3 {[%clk 0:03:00.9]} 1... c5 {[%clk 0:03:00.9]} 2. b3 {[%clk 0:03:00]} 2...
d5 {[%clk 0:03:00.6]} 3. e3 {[%clk 0:02:57.8]} 3... Nc6 {[%clk 0:03:00.3]} 4.
Bb2 {[%clk 0:02:57.8]} 4... Bg4 {[%clk 0:02:52.6]} 5. Be2 {[%clk 0:02:56.8]}
5... Nf6 {[%clk 0:02:48.6]} 6. Ne5 {[%clk 0:02:53.8]} 6... Nxe5 {[%clk
0:02:46.5]} 7. Bxe5 {[%clk 0:02:52.1]} 7... Bxe2 {[%clk 0:02:39.6]} 8. Qxe2
{[%clk 0:02:51.8]} 8... e6 {[%clk 0:02:32.2]} 9. O-O {[%clk 0:02:43.1]} 9... Bd6
{[%clk 0:02:14.7]} 10. f4 {[%clk 0:02:39.3]} 10... O-O {[%clk 0:02:14.3]} 11. d3
{[%clk 0:02:37.2]} 11... Bxe5 {[%clk 0:02:13.6]} 12. fxe5 {[%clk 0:02:36.7]}
12... Nd7 {[%clk 0:02:13.7]} 13. d4 {[%clk 0:02:36]} 13... f6 {[%clk 0:02:08.9]}
14. exf6 {[%clk 0:02:30.6]} 14... Rxf6 {[%clk 0:01:56.7]} 15. Nd2 {[%clk
0:02:28.2]} 15... Qb6 {[%clk 0:01:52.1]} 16. c3 {[%clk 0:02:15.8]} 16... cxd4
{[%clk 0:01:50.7]} 17. exd4 {[%clk 0:02:12.3]} 17... Raf8 {[%clk 0:01:47.9]} 18.
Rxf6 {[%clk 0:02:11.4]} 18... Nxf6 {[%clk 0:01:47.4]} 19. Rf1 {[%clk 0:02:06.7]}
19... Rc8 {[%clk 0:01:42]} 20. Rf3 {[%clk 0:01:53.4]} 20... Qa5 {[%clk
0:01:39.5]} 21. Qxe6+ {[%clk 0:01:49.7]} 1-0